[Event "Skilling Open CCT 2021"]
[Site "Online"]
[Date "2020.11.19"]
[Round "15.7"]
[White "Duda, Jan-Krzysztof"]
[Black "Karjakin, Sergey"]
[Result "0-1"]
[ECO "D37"]
[WhiteElo "2774"]
[BlackElo "2709"]
[Annotator "RC"]
[PlyCount "132"]
[EventDate "2020.11.20"]
[EventType "tourn"]
[EventCountry "NET"]
[Tiebreak "Koya+Number of black wins+Number of wins"]
[SourceTitle "playchess.com"]
[Source "ChessBase"]
[SourceQuality "1"]
[TimeControl "900+10"]

1. d4 {[%emt 0:00:00]} Nf6 {[%emt 0:00:00]} 2. c4 {[%emt 0:00:00]} e6 {[%emt 0:
00:00]} 3. Nf3 {[%emt 0:00:00]} d5 {[%emt 0:00:00]} 4. Nc3 {[%emt 0:00:00]} Be7
{[%emt 0:00:01]} 5. Bf4 {[%emt 0:00:00]} O-O {[%emt 0:00:02]} 6. e3 {[%emt 0:
00:00]} Nbd7 {[%emt 0:00:06]} 7. Be2 {[%emt 0:00:00]} dxc4 {[%emt 0:00:11]} 8.
O-O {[%emt 0:00:00]} c5 {[%emt 0:00:02]} 9. dxc5 {[%emt 0:00:09]} Nxc5 {
[%emt 0:00:00]} 10. Bxc4 {[%emt 0:00:01]} Qxd1 {[%emt 0:00:02]} 11. Rfxd1 {
[%emt 0:00:00]} b6 {[%emt 0:00:02]} 12. Ne5 {[%emt 0:00:02]} Bb7 {[%emt 0:00:
04]} 13. f3 {[%emt 0:00:00]} Nh5 {[%emt 0:02:21]} 14. b4 {[%emt 0:00:04]} Na6 {
[%emt 0:00:02]} 15. a3 {[%emt 0:00:01]} Nb8 {[%emt 0:01:01]} 16. Nb5 {[%emt 0:
00:02]} g5 {[%emt 0:01:31]} 17. Bg3 {[%emt 0:00:03]} Nxg3 {[%emt 0:00:03]} 18.
hxg3 {[%emt 0:00:00]} Nc6 {[%emt 0:01:06]} 19. Nxf7 {[%emt 0:04:09]} Kxf7 {
[%emt 0:01:04]} 20. Nc7 {[%emt 0:02:35]} Kf6 {[%emt 0:01:44]} 21. Nxa8 {
[%emt 0:01:15]} Bxa8 {[%emt 0:00:17]} 22. Rac1 {[%emt 0:00:35]} a5 {[%emt 0:00:
26]} 23. Bb5 {[%emt 0:00:26]} Ne5 {[%emt 0:01:51]} 24. Rc7 {[%emt 0:02:10]}
axb4 {[%emt 0:00:07]} 25. axb4 {[%emt 0:00:04]} Bxb4 {[%emt 0:02:03]} 26. Rxh7
{[%emt 0:01:56]} Bc5 {[%emt 0:00:01]} 27. Rh6+ {[%emt 0:00:04]} Ke7 {[%emt 0:
00:15]} 28. Rh7+ {[%emt 0:01:20]} Rf7 {[%emt 0:00:13]} 29. Rxf7+ {[%emt 0:00:
07]} Nxf7 {[%emt 0:00:00]} 30. Kf2 {[%emt 0:00:01]} Nd6 {[%emt 0:00:04]} 31.
Bd3 {[%emt 0:00:07]} Nf5 {[%emt 0:00:31]} 32. Bxf5 {[%emt 0:00:52]} exf5 {
[%emt 0:00:02]} 33. Ke2 {[%emt 0:00:00]} Bc6 {[%emt 0:00:19]} 34. Rh1 {[%emt 0:
00:06]} Be8 {[%emt 0:00:16]} 35. Rh7+ {[%emt 0:00:40]} Bf7 {[%emt 0:00:02]} 36.
Kd3 {[%emt 0:00:11]} b5 {[%emt 0:00:05]} 37. e4 {[%emt 0:00:18]} fxe4+ {
[%emt 0:00:15]} 38. Kxe4 {[%emt 0:00:00]} b4 {[%emt 0:00:03]} 39. Kd3 {[%emt 0:
00:51]} b3 {[%emt 0:00:54]} 40. Kc3 {[%emt 0:00:49]} Bf2 {[%emt 0:01:00]} 41.
f4 {[%emt 0:01:58]} g4 {[%emt 0:00:03]} 42. Rh4 {[%emt 0:00:01]} Kf6 {[%emt 0:
00:36]} 43. Rh6+ {[%emt 0:00:08]} Kf5 {[%emt 0:00:07]} 44. Rh7 {[%emt 0:00:08]}
Kg6 {[%emt 0:00:55]} 45. Rh4 {[%emt 0:00:08]} Be1+ {[%emt 0:00:19]} 46. Kb2 {
[%emt 0:00:19]} Be6 {[%emt 0:00:03]} 47. Rxg4+ {[%emt 0:00:16]} Bxg4 {[%emt 0:
00:02]} 48. f5+ {[%emt 0:00:00]} Kxf5 {[%emt 0:00:03]} 49. Kxb3 {[%emt 0:00:00]
} Bxg3 {[%emt 0:00:01]} 50. Kc4 {[%emt 0:00:00]} Ke4 {[%emt 0:00:01]} 51. Kc5 {
[%emt 0:00:01]} Be2 {[%emt 0:00:01]} 52. Kc6 {[%emt 0:00:02]} Bf1 {[%emt 0:00:
02]} 53. Kc5 {[%emt 0:00:00]} Bxg2 {[%emt 0:00:01]} 54. Kc4 {[%emt 0:00:01]}
Be5 {[%emt 0:00:03]} 55. Kc5 {[%emt 0:00:00]} Kd3 {[%emt 0:00:01]} 56. Kb5 {
[%emt 0:00:01]} Bd4 {[%emt 0:00:03]} 57. Kb4 {[%emt 0:00:03]} Bc6 {[%emt 0:00:
02]} 58. Ka5 {[%emt 0:00:02]} Kc4 {[%emt 0:00:05]} 59. Ka6 {[%emt 0:00:00]} Bc3
{[%emt 0:00:04]} 60. Kb6 {[%emt 0:00:01]} Kd5 {[%emt 0:00:01]} 61. Kc7 {
[%emt 0:00:09]} Kc5 {[%emt 0:00:03]} 62. Kc8 {[%emt 0:00:04]} Kb6 {[%emt 0:00:
03]} 63. Kd8 {[%emt 0:00:04]} Bf6+ {[%emt 0:00:02]} 64. Kc8 {[%emt 0:00:01]}
Bb5 {[%emt 0:00:01]} 65. Kb8 {[%emt 0:00:02]} Bd7 {[%emt 0:00:01]} 66. Ka8 {
[%emt 0:00:06]} Bg7 {[%emt 0:00:02]} 0-1

[Event "Skilling Open CCT 2021"]
[Site "Online"]
[Date "2020.11.19"]
[Round "15.8"]
[White "Ding, Liren"]
[Black "Giri, Anish"]
[Result "1/2-1/2"]
[ECO "A11"]
[WhiteElo "2836"]
[BlackElo "2731"]
[Annotator "RC"]
[PlyCount "125"]
[EventDate "2020.11.20"]
[EventType "tourn"]
[EventCountry "NET"]
[Tiebreak "Koya+Number of black wins+Number of wins"]
[SourceTitle "playchess.com"]
[Source "ChessBase"]
[SourceQuality "1"]
[TimeControl "900+10"]

1. c4 {[%emt 0:00:00]} Nf6 {[%emt 0:00:00]} 2. g3 {[%emt 0:00:06]} c6 {[%emt 0:
00:00]} 3. Bg2 {[%emt 0:00:35]} d5 {[%emt 0:00:04]} 4. Nf3 {[%emt 0:00:01]}
dxc4 {[%emt 0:00:02]} 5. O-O {[%emt 0:00:29]} Nbd7 {[%emt 0:00:01]} 6. Na3 {
[%emt 0:00:25]} Nb6 {[%emt 0:00:02]} 7. Qc2 {[%emt 0:00:00]} Be6 {[%emt 0:00:
02]} 8. Ne5 {[%emt 0:00:02]} h5 {[%emt 0:00:05]} 9. Naxc4 {[%emt 0:00:01]} Nxc4
{[%emt 0:00:23]} 10. Nxc4 {[%emt 0:00:00]} h4 {[%emt 0:00:01]} 11. Ne5 {
[%emt 0:00:02]} hxg3 {[%emt 0:00:40]} 12. hxg3 {[%emt 0:00:01]} Qd4 {[%emt 0:
01:37]} 13. Qc3 {[%emt 0:05:35]} Qd6 {[%emt 0:00:09]} 14. d4 {[%emt 0:00:41]}
Rd8 {[%emt 0:00:02]} 15. Qa5 {[%emt 0:03:21]} Bh3 {[%emt 0:01:17]} 16. Qxa7 {
[%emt 0:01:06]} Bxg2 {[%emt 0:00:34]} 17. Kxg2 {[%emt 0:00:01]} Qxd4 {[%emt 0:
00:01]} 18. Qxd4 {[%emt 0:00:04]} Rxd4 {[%emt 0:00:00]} 19. Be3 {[%emt 0:00:29]
} Rd5 {[%emt 0:00:05]} 20. f4 {[%emt 0:00:20]} g5 {[%emt 0:02:30]} 21. a4 {
[%emt 0:00:53]} gxf4 {[%emt 0:00:12]} 22. gxf4 {[%emt 0:00:02]} Nd7 {[%emt 0:
00:24]} 23. Nc4 {[%emt 0:01:54]} Bg7 {[%emt 0:01:52]} 24. Rad1 {[%emt 0:00:17]}
b5 {[%emt 0:01:24]} 25. axb5 {[%emt 0:00:19]} Rxb5 {[%emt 0:00:02]} 26. Rd2 {
[%emt 0:00:16]} Nf6 {[%emt 0:00:20]} 27. Ra1 {[%emt 0:00:07]} Nd5 {[%emt 0:00:
09]} 28. Ra8+ {[%emt 0:01:37]} Kd7 {[%emt 0:00:02]} 29. Rxh8 {[%emt 0:00:01]}
Bxh8 {[%emt 0:00:01]} 30. Kf3 {[%emt 0:00:17]} Rb4 {[%emt 0:01:07]} 31. Nb6+ {
[%emt 0:00:20]} Ke6 {[%emt 0:00:03]} 32. Nxd5 {[%emt 0:00:01]} cxd5 {[%emt 0:
00:01]} 33. Bc5 {[%emt 0:00:07]} Rb3+ {[%emt 0:00:41]} 34. e3 {[%emt 0:00:23]}
Bxb2 {[%emt 0:00:12]} 35. f5+ {[%emt 0:00:02]} Kxf5 {[%emt 0:00:04]} 36. Rxd5+
{[%emt 0:00:02]} e5 {[%emt 0:00:30]} 37. Ba7 {[%emt 0:00:17]} Ke6 {[%emt 0:00:
22]} 38. Ra5 {[%emt 0:00:03]} Bd4 {[%emt 0:01:30]} 39. Bxd4 {[%emt 0:00:04]}
exd4 {[%emt 0:00:00]} 40. Ke4 {[%emt 0:00:01]} Rxe3+ {[%emt 0:00:52]} 41. Kxd4
{[%emt 0:00:01]} Re1 {[%emt 0:00:02]} 42. Ra2 {[%emt 0:00:49]} f6 {[%emt 0:00:
33]} 43. Rb2 {[%emt 0:00:12]} Kf7 {[%emt 0:01:53]} 44. Rf2 {[%emt 0:00:08]} Kg6
{[%emt 0:00:09]} 45. Rg2+ {[%emt 0:00:01]} Kh5 {[%emt 0:00:01]} 46. Rf2 {
[%emt 0:00:02]} Kg5 {[%emt 0:00:08]} 47. Rg2+ {[%emt 0:00:01]} Kf5 {[%emt 0:00:
00]} 48. Rf2+ {[%emt 0:00:01]} Ke6 {[%emt 0:00:00]} 49. Ra2 {[%emt 0:00:04]}
Ke7 {[%emt 0:00:06]} 50. Ra7+ {[%emt 0:00:11]} Ke6 {[%emt 0:00:02]} 51. Ra2 {
[%emt 0:00:01]} f5 {[%emt 0:00:01]} 52. Ra6+ {[%emt 0:00:02]} Kf7 {[%emt 0:00:
01]} 53. Kd3 {[%emt 0:00:07]} Kg7 {[%emt 0:00:01]} 54. Kd2 {[%emt 0:00:10]} Re5
{[%emt 0:00:02]} 55. Kd3 {[%emt 0:00:04]} Kf7 {[%emt 0:00:03]} 56. Rb6 {
[%emt 0:00:09]} Re7 {[%emt 0:00:05]} 57. Ra6 {[%emt 0:00:05]} Kg7 {[%emt 0:00:
00]} 58. Rb6 {[%emt 0:00:05]} f4 {[%emt 0:00:05]} 59. Rb4 {[%emt 0:00:01]} f3 {
[%emt 0:00:04]} 60. Rf4 {[%emt 0:00:02]} Rf7 {[%emt 0:00:02]} 61. Rxf7+ {
[%emt 0:00:01]} Kxf7 {[%emt 0:00:00]} 62. Ke3 {[%emt 0:00:01]} f2 {[%emt 0:00:
00]} 63. Kxf2 {[%emt 0:00:00]} 1/2-1/2